bitfinex/quotes_ETHUSD_20240915
["timestamp","ask_amount","ask_price","bid_price","bid_amount"]
[1726419335933,4.17296,2396.4,2395.9,2.3074]
[1726419336139,4.17296,2396.4,2395.5,4.17444]
[1726419336140,4.17411,2395.8,2395.5,2.3074]
[1726419336768,4.17431,2395.6,2395.5,2.3074]
[1726419336945,4.17417,2395.7,2395.5,2.3074]
[1726419337163,4.17371,2396.0,2395.5,2.3074]
[1726419337365,4.174,2395.8,2395.5,2.3074]
[1726419338569,0.0456616,2395.7,2395.5,2.3074]
[1726419339086,0.04553841,2395.6,2395.5,6.48189]
[1726419339237,11.54341,2396.2,2395.5,7.547548]
[1726419339441,0.04411866,2396.1,2395.5,7.547548]
[1726419339641,4.21756866,2396.1,2395.6,4.17429]
[1726419339874,4.21756866,2396.1,2395.6,5.7639358]
[1726419341167,4.21756866,2396.1,2395.6,1.5896458]
[1726419341489,4.21756866,2396.1,2395.5,2.3074]
[1726419341490,4.17372,2396.0,2395.5,2.3074]
[1726419341650,4.17382,2395.9,2395.5,2.3074]
[1726419342363,0.04404839,2395.8,2395.5,2.3074]
[1726419343685,0.0440542,2395.7,2395.5,2.3074]
[1726419344073,4.17383,2395.9,2395.5,2.3074]
[1726419344359,0.04399891,2395.6,2395.5,2.3074]
[1726419344987,4.17372,2396.0,2395.5,2.3074]
[1726419345482,0.04414313,2395.9,2395.5,3.04308593]
[1726419346286,0.04262568,2395.8,2395.5,3.04308593]
[1726419346672,11.54335,2396.2,2395.5,3.04308593]
[1726419346860,0.04257967,2395.7,2395.5,3.04308593]
[1726419347061,4.17379,2396.0,2395.6,0.72177459]
[1726419347260,0.0426717,2395.9,2395.5,2.3074]
[1726419349199,0.0426717,2395.9,2395.6,1.18361049]
[1726419349391,0.0426717,2395.9,2395.5,3.18219934]
[1726419349592,0.0426717,2395.9,2395.6,2.95933993]
[1726419349749,0.0426717,2395.9,2395.5,2.3074]
[1726419349953,0.0426717,2395.9,2395.6,2.95934156]
[1726419350179,0.0426717,2395.9,2395.5,4.04909018]
[1726419350447,0.0426717,2395.9,2395.6,2.96047112]
[1726419350753,0.0426717,2395.9,2395.5,3.17429084]
[1726419350963,0.0426717,2395.9,2395.6,2.13778318]
[1726419351190,0.0426717,2395.9,2395.5,2.3074]
[1726419351492,0.0426717,2395.9,2395.6,1.18455073]
[1726419351725,0.0426717,2395.9,2395.5,7.35665934]
[1726419351994,0.0426717,2395.9,2395.6,2.96136777]
[1726419352305,0.0426717,2395.9,2395.7,1.03180271]
[1726419352897,0.0410749,2395.8,2395.7,1.03180271]
[1726419353294,15.71673,2396.2,2395.7,1.03180271]
[1726419353493,0.0410749,2395.8,2395.7,1.03180271]
[1726419353811,4.17334,2396.2,2395.8,2.3308]
[1726419354916,7.17303,2396.4,2395.8,2.3308]
[1726419355067,4.17312,2396.3,2395.8,2.3308]
[1726419355534,4.17332,2396.2,2395.8,2.3308]
[1726419356716,4.17344,2396.1,2395.8,2.3308]
[1726419358768,4.17344,2396.1,2395.5,2.3308]
[1726419358769,4.17399,2395.8,2395.5,2.3308]
[1726419359445,4.17374,2396.0,2395.5,2.3308]
[1726419359446,0.04129016,2395.7,2395.5,2.3308]
[1726419359686,4.17381,2395.9,2395.5,2.3308]
[1726419359986,0.04116147,2395.6,2395.5,2.3308]
[1726419360441,4.17381,2395.9,2395.5,2.3308]
[1726419360636,0.04125349,2395.8,2395.5,2.3308]
[1726419361028,4.21524349,2395.8,2395.5,2.3308]
[1726419361226,0.04125349,2395.8,2395.5,2.3308]
[1726419361429,4.17389,2395.9,2395.5,2.981352]
[1726419361628,0.04117998,2395.8,2395.5,2.3308]
[1726419361876,4.21517998,2395.8,2395.3,4.17472]
[1726419362185,0.04117998,2395.8,2395.0,2.3308]
[1726419362361,0.04117998,2395.8,2394.7,1.74319152]
[1726419362362,2.2712,2395.4,2394.7,2.3308]
[1726419362541,4.17571,2394.8,2394.7,2.3308]
[1726419362939,0.04063932,2394.8,2394.7,2.3308]
[1726419363503,4.21634932,2394.8,2394.7,2.3308]
[1726419363787,8.35282,2394.4,2394.3,0.00321668]
[1726419363990,4.17641,2394.4,2394.3,0.00321668]
[1726419364305,14.58626102,2394.4,2394.3,0.00321668]
[1726419365066,19.31267102,2394.4,2394.3,0.00321668]
[1726419365254,4.21688494,2394.4,2394.3,0.00321668]
[1726419365464,0.04047494,2394.4,2394.3,0.00321668]
[1726419365669,7.37,2395.0,2394.3,0.00321668]
[1726419365670,4.1761,2394.6,2394.3,0.23661835]
[1726419365849,0.03975017,2394.5,2394.3,0.23661835]
[1726419366049,4.17617,2394.6,2394.3,0.23661835]
[1726419366254,4.17617,2394.6,2394.3,0.00321668]
[1726419366255,0.03975017,2394.5,2394.3,0.00321668]
[1726419366450,8.35282,2394.4,2394.3,0.00321668]
[1726419366683,8.39254889,2394.4,2394.3,0.00321668]
[1726419367404,9.23180378,2394.4,2394.3,0.00321668]
[1726419367699,16.95821378,2394.4,2394.3,0.00321668]
[1726419368114,12.78180378,2394.4,2394.3,0.00321668]
[1726419368708,8.39254889,2394.4,2394.3,0.00321668]
[1726419369901,8.49254889,2394.4,2394.3,0.00321668]
[1726419370400,9.04254889,2394.4,2394.3,0.00321668]
[1726419370561,13.21895889,2394.4,2394.3,0.00321668]
[1726419370770,16.21895889,2394.4,2394.3,0.00321668]
[1726419370970,20.6901507,2394.4,2394.3,0.00321668]
[1726419371567,24.8665607,2394.4,2394.3,0.00321668]
[1726419371769,25.38823408,2394.4,2394.3,0.00321668]
[1726419372014,25.38823408,2394.4,2393.1,7.46509018]
[1726419372015,4.1776,2393.8,2393.1,7.46509018]
[1726419372168,4.17728,2393.9,2393.2,8.42686007]
[1726419372374,0.03925148,2393.7,2393.3,1.18115926]
[1726419372699,0.03916201,2393.6,2393.3,0.75301905]
[1726419372901,3.30521396,2393.8,2393.3,0.75301905]
[1726419373078,0.04051127,2393.5,2393.3,0.75301905]
[1726419373278,4.1782,2393.4,2392.8,0.87479934]
[1726419373486,4.21881592,2393.3,2392.9,0.12491867]
[1726419373704,0.04038592,2393.3,2392.9,0.12491867]
[1726419374281,7.37,2393.7,2392.9,0.12491867]
[1726419374282,4.17818,2393.4,2392.9,0.12491867]
[1726419374471,0.04033652,2393.2,2392.7,0.0621883]
[1726419374972,0.04033652,2393.2,2392.9,2.3814]
[1726419375318,8.33665,2393.7,2392.9,2.3814]
[1726419375319,7.37,2393.7,2393.0,4.17873]
[1726419375522,0.04028712,2393.1,2393.0,4.41687]
[1726419376011,7.37,2393.7,2393.1,4.1786]
[1726419376171,7.37,2393.7,2393.1,1.097729]
[1726419376374,4.17785,2393.6,2393.1,1.097729]
[1726419376577,7.37,2393.7,2393.2,4.17845]
[1726419376786,7.37,2393.7,2393.2,4.7299099]
[1726419377086,4.17781,2393.6,2393.2,0.5514599]
[1726419377296,8.35575,2393.6,2393.1,1.097729]
[1726419377512,8.35575,2393.6,2392.9,2.3814]
[1726419377513,4.17781,2393.6,2392.9,2.3814]
[1726419378092,4.17816,2393.4,2392.9,2.3814]
[1726419378594,4.17851,2393.2,2392.6,6.56093]
[1726419378828,4.17915,2392.9,2392.3,6.56137]
[1726419379025,2.2965,2393.4,2392.5,4.17962]
[1726419379026,4.17878,2393.1,2392.5,4.17962]
[1726419379341,4.17878,2393.1,2392.4,4.17975]
[1726419379641,2.2965,2393.4,2392.4,4.17985]
[1726419379928,2.2965,2393.4,2392.6,4.17942]
[1726419379929,4.17861,2393.2,2392.6,4.17942]
[1726419380292,4.1787,2393.1,2392.5,4.17968]
[1726419380489,4.17861,2393.2,2392.5,4.17962]
[1726419380723,8.35726,2393.2,2392.7,2.4435883]
[1726419380893,4.17861,2393.2,2392.7,2.4435883]
[1726419381439,4.17884,2393.1,2392.7,2.4435883]
[1726419381583,4.17891,2393.0,2392.7,0.0621883]
[1726419381784,8.35788,2393.0,2392.7,0.0621883]
[1726419382027,8.35788,2393.0,2392.4,6.3233783]
[1726419382185,4.17891,2393.0,2392.4,2.3814]
[1726419382693,4.17932,2392.8,2392.4,2.3814]
[1726419383032,4.17792,2393.6,2393.0,2.3814]
[1726419383236,4.17792,2393.6,2393.1,0.656037]
[1726419383525,6.47401,2393.8,2393.0,0.30005663]
[1726419383700,4.17751,2393.8,2393.1,0.0835614]
[1726419383900,4.824911,2393.8,2393.1,4.2621914]
[1726419384113,4.17799,2393.5,2393.0,0.30005663]
[1726419384299,4.17799,2393.5,2393.0,5.663e-05]
[1726419384529,4.17771,2393.7,2393.1,4.17864]
[1726419384728,4.17771,2393.7,2393.1,4.59650966]
[1726419385031,4.17785,2393.6,2393.1,0.41786966]
[1726419385338,4.17736,2393.9,2393.2,0.08355939]
[1726419385499,8.35476,2393.9,2393.3,4.1782]
[1726419385698,8.35476,2393.9,2393.3,5.013878]
[1726419385906,4.17751,2393.8,2393.3,5.013878]
[1726419386506,4.17736,2393.9,2393.3,5.013878]
[1726419386507,8.35474,2393.9,2393.3,5.013878]
[1726419387141,8.35474,2393.9,2393.4,0.5013878]
[1726419387142,4.17736,2393.9,2393.4,0.5013878]
[1726419387436,4.1773,2393.9,2393.5,2.3232]
[1726419388634,4.17662,2394.3,2393.7,4.17758]
[1726419388789,4.17662,2394.3,2393.6,0.28245878]
[1726419388989,4.17678,2394.2,2393.6,0.28245878]
[1726419389553,4.17662,2394.3,2393.6,0.28245878]
[1726419389843,4.17662,2394.3,2393.7,4.17761]
[1726419390005,4.17662,2394.3,2393.7,5.27365188]
[1726419390204,4.17662,2394.3,2393.7,5.27363188]
[1726419390439,4.17662,2394.3,2393.8,2.3232]
[1726419390648,11.5463,2394.5,2393.8,2.3232]
[1726419390861,4.17693,2394.2,2393.8,2.3232]
[1726419391063,4.17716,2394.0,2393.4,2.3232]
[1726419391265,4.594663,2394.1,2393.5,4.17794]
[1726419391468,4.17712,2394.0,2393.4,2.3232]
[1726419391838,4.17712,2394.0,2393.4,6.50134]
[1726419392163,4.17685,2394.2,2393.6,2.4116]
[1726419392325,4.17685,2394.2,2393.6,6.5893]
[1726419392725,7.37,2394.3,2393.6,6.5893]
[1726419393028,4.17686,2394.2,2393.6,6.5893]
[1726419393367,7.37,2394.3,2393.7,8.35512]
[1726419393569,7.37,2394.3,2393.8,2.4116]
[1726419393743,11.54671,2394.3,2393.8,2.4116]
[1726419394639,7.37,2394.3,2393.8,2.4116]
[1726419394833,7.37,2394.3,2393.9,1.05167421]
[1726419395038,5.37701892,2394.6,2393.9,1.05167421]
[1726419395039,9.55322892,2394.6,2394.0,0.08353277]
[1726419395341,7.37,2394.7,2394.1,6.58848]
[1726419395750,7.37,2394.7,2394.1,6.58842]
[1726419395964,7.37,2394.7,2394.1,10.5160521]
[1726419396167,7.37,2394.7,2394.4,4.1764]
[1726419396467,12.4774936,2395.1,2394.6,4.1759]
[1726419396468,0.0274936,2395.1,2394.6,4.1759]
[1726419396771,0.0274936,2395.1,2394.8,4.17569]
[1726419397018,0.0274936,2395.1,2394.9,6.58713]
[1726419397174,0.0274936,2395.1,2394.9,6.58703]
[1726419398766,0.0274936,2395.1,2394.9,6.58701]
[1726419398937,0.0274936,2395.1,2394.9,6.587]
[1726419399271,0.0274936,2395.1,2394.9,10.76243]
[1726419399452,0.0274936,2395.1,2394.9,7.663243]
[1726419399659,0.0274936,2395.1,2394.9,11.838673]
[1726419399977,0.0274936,2395.1,2394.9,7.663243]
[1726419400830,0.0274936,2395.1,2394.9,3.487843]
[1726419401763,0.0274936,2395.1,2394.9,7.663373]
[1726419404143,0.0274936,2395.1,2394.5,0.87479934]
[1726419404144,2.2777,2395.0,2394.5,0.87479934]
[1726419404353,2.2777,2395.0,2393.9,4.1771]
[1726419404354,4.17603,2394.7,2393.9,4.1771]
[1726419404599,7.45748021,2394.6,2393.6,3.28639934]
[1726419404804,4.17723,2394.0,2393.6,2.4116]
[1726419405114,4.17696,2394.1,2393.6,2.4116]
[1726419405316,4.17696,2394.1,2393.6,2.74023993]
[1726419406591,4.17718,2394.0,2393.6,2.74023993]
[1726419407206,4.17696,2394.1,2393.6,2.74023993]
[1726419408719,8.35403,2394.1,2393.6,2.74023993]
[1726419409522,4.17711,2394.0,2393.6,2.74023993]
[1726419410245,4.17636,2394.5,2393.7,0.27402399]
[1726419410408,4.17636,2394.5,2393.6,0.32863993]
[1726419410409,4.17681,2394.2,2393.8,2.3105]
[1726419410747,4.17704,2394.1,2393.8,2.3105]
[1726419411032,4.17681,2394.2,2393.8,2.3105]
[1726419411200,8.35374,2394.2,2393.8,2.3105]
[1726419411811,4.17699,2394.1,2393.8,2.3105]
[1726419412512,5.012184,2394.2,2393.8,2.3105]
[1726419412734,4.1771,2394.0,2393.8,2.3105]
[1726419413257,3.30477598,2394.0,2393.8,2.3105]
[1726419414029,8.35372,2394.2,2393.8,2.3105]
[1726419414546,4.17699,2394.1,2393.8,2.3105]
[1726419416262,4.17645,2394.4,2393.8,2.54155]
[1726419416555,4.1766,2394.3,2393.8,2.54155]
[1726419416912,4.17676,2394.2,2393.8,2.54155]
[1726419417458,8.35297,2394.4,2394.0,2.3995]
[1726419417614,4.17645,2394.4,2394.0,2.3995]
[1726419418221,4.17658,2394.3,2394.0,2.3995]
[1726419420477,4.17689,2394.2,2394.0,2.3995]
[1726419420773,4.17722,2394.0,2393.5,2.3995]
[1726419420937,4.17739,2393.9,2393.5,2.3995]
[1726419421266,4.17718,2394.0,2393.5,2.3995]
[1726419421632,4.1775,2393.8,2393.5,2.3995]
[1726419422727,8.35441,2394.0,2393.5,2.3995]
[1726419422934,4.17718,2394.0,2393.5,2.3995]
[1726419423443,4.17737,2393.9,2393.5,2.3995]
[1726419424170,4.17718,2394.0,2393.5,3.057263]
[1726419424370,4.17695,2394.1,2393.5,7.235133]
[1726419424944,4.17686,2394.2,2393.5,7.235133]
[1726419424945,8.35378,2394.2,2393.6,4.17778]
[1726419425175,4.17662,2394.3,2393.7,6.57703]
[1726419425359,4.17677,2394.2,2393.7,6.57703]
[1726419425527,12.949004,2394.4,2393.7,6.57703]
[1726419426229,4.17678,2394.2,2393.7,2.3995]
[1726419427403,8.35364,2394.2,2393.7,2.3995]
[1726419427610,4.17678,2394.2,2393.7,2.3995]
[1726419427897,5.8893904,2394.2,2393.7,2.3995]
[1726419428203,4.17722,2394.0,2393.7,2.3995]
[1726419428398,8.35444,2394.0,2393.7,2.3995]
[1726419428555,4.17737,2393.9,2393.4,2.2833]
[1726419429097,4.17749,2393.8,2393.4,2.2833]
[1726419429283,4.17746,2393.8,2393.4,2.2833]
[1726419429455,4.1779,2393.6,2393.1,2.2833]
[1726419429893,9.16558753,2393.8,2393.2,4.17841]
[1726419430097,4.17752,2393.8,2393.2,4.824571]
[1726419430404,4.17763,2393.7,2393.2,4.824571]
[1726419430989,4.17781,2393.6,2393.1,6.46197]
[1726419431202,4.17781,2393.6,2393.2,2.91705785]
[1726419431517,4.1775,2393.8,2393.1,2.2833]
[1726419431798,4.17776,2393.7,2393.2,1.16683198]
[1726419432112,4.17781,2393.6,2393.1,3.55581731]
[1726419432396,4.1775,2393.8,2393.1,7.73436731]
[1726419432397,4.17774,2393.7,2393.1,7.73436731]
[1726419433159,4.17755,2393.8,2393.1,3.55581731]
[1726419433458,4.1778,2393.6,2393.1,3.55581731]
[1726419433682,2.4905,2393.9,2393.1,2.2833]
[1726419433884,8.3569,2393.3,2392.9,2.2862]
[1726419434085,1.05951753,2393.8,2393.1,4.17864]
[1726419434268,1.05951753,2393.8,2393.1,0.646484]
[1726419434483,9.16460284,2393.8,2392.9,2.2862]
[1726419434745,4.17843,2393.3,2392.9,2.2862]
[1726419435124,8.35687,2393.3,2392.9,2.2862]
[1726419435325,8.35687,2393.3,2392.7,2.2862]
[1726419435326,4.17868,2393.1,2392.7,2.2862]
[1726419435734,4.17904,2392.9,2392.3,5.07820004]
[1726419435961,4.17904,2392.9,2392.4,5.20225042]
[1726419436263,4.17868,2393.1,2392.4,6.46595]
[1726419436465,4.17868,2393.1,2392.6,2.2862]
[1726419436813,4.17868,2393.1,2392.5,5.334025]
[1726419436814,2.4905,2393.8,2393.0,2.2862]
[1726419437120,2.4905,2393.8,2392.7,3.92751531]
[1726419437121,4.17757,2393.8,2393.2,6.21371531]
[1726419437335,4.1774,2393.9,2393.3,1.03923253]
[1726419437517,4.1772,2394.0,2393.3,4.1783]
[1726419437828,4.17732,2393.9,2393.3,1.45704153]
[1726419438547,4.17732,2393.9,2393.4,2.2862]
[1726419439468,4.17732,2393.9,2393.5,0.0835482]
[1726419439687,4.17732,2393.9,2393.4,2.2862]
[1726419439826,4.1772,2394.0,2393.5,0.08354806]
[1726419440020,4.1772,2394.0,2393.4,3.88894268]
[1726419441174,4.1772,2394.0,2393.4,2.2862]
[1726419441326,4.1772,2394.0,2393.5,4.17797]
[1726419441667,4.17686,2394.2,2393.7,4.17753]
[1726419441668,4.17676,2394.2,2393.7,4.17753]
[1726419441877,4.17676,2394.2,2393.8,0.646373]
[1726419443082,4.17624,2394.5,2393.9,4.17711]
[1726419443280,4.17634,2394.5,2393.9,11.29860387]
[1726419443589,4.17645,2394.4,2393.9,2.2862]
[1726419443874,4.17687,2394.2,2393.6,2.2862]
[1726419444094,4.17714,2394.0,2393.6,2.2862]
[1726419444236,4.17742,2393.9,2393.6,2.2862]
[1726419444978,4.17752,2393.8,2393.6,2.2862]
[1726419445333,4.594854,2394.0,2393.6,2.2862]
[1726419445683,4.17714,2394.0,2393.6,2.2862]
[1726419446235,8.35437,2394.0,2393.6,2.2862]
[1726419446473,4.17732,2393.9,2393.6,2.2862]
[1726419447849,4.17714,2394.0,2393.6,2.2862]
[1726419448054,8.35438,2394.0,2393.6,2.2862]
[1726419448365,4.17714,2394.0,2393.6,2.2862]
[1726419448549,8.3544,2394.0,2393.6,2.2862]
[1726419448883,4.17714,2394.0,2393.6,2.2862]
[1726419449053,8.35435,2394.0,2393.6,2.2862]
[1726419449392,8.35435,2394.0,2393.7,1.17008259]
[1726419449680,4.17714,2394.0,2393.6,2.2862]
[1726419449885,4.17714,2394.0,2393.7,1.17012851]
[1726419450041,4.17714,2394.0,2393.6,2.2862]
[1726419450241,4.17714,2394.0,2393.7,2.92576144]
[1726419450484,8.35434,2394.0,2393.6,3.16099934]
[1726419450632,8.35434,2394.0,2393.7,2.92616985]
[1726419450837,4.17714,2394.0,2393.6,3.16099934]
[1726419451192,4.17714,2394.0,2393.7,2.92616718]
[1726419451476,4.17714,2394.0,2393.6,3.16099934]
[1726419451680,4.17666,2394.3,2393.8,2.2716]
[1726419451979,4.17627,2394.5,2394.0,2.2716]
[1726419452662,11.5769332,2394.7,2394.0,6.44859]
[1726419452862,11.5769332,2394.7,2393.9,6.03424963]
[1726419452863,11.5769332,2394.7,2394.1,2.2859]
[1726419453077,4.17625,2394.5,2394.1,2.2859]
[1726419453577,4.17699,2394.1,2393.9,2.2859]
[1726419453790,4.17699,2394.1,2394.0,1.17033504]
[1726419453941,4.17699,2394.1,2393.6,0.87479934]
[1726419453942,4.17728,2393.9,2393.6,0.87479934]
[1726419454141,4.17749,2393.8,2393.5,3.16069934]
[1726419454375,4.17749,2393.8,2393.6,2.91831387]
[1726419454576,4.17763,2393.7,2393.5,3.16069934]
[1726419454786,4.17748,2393.8,2393.6,1.16731812]
[1726419454967,4.17763,2393.7,2393.5,2.2859]
[1726419455174,4.17763,2393.7,2393.6,1.16732479]
[1726419455670,8.35509,2393.8,2393.6,1.16732479]
[1726419455870,8.35509,2393.8,2393.5,3.16069934]
[1726419456067,8.35509,2393.8,2393.6,2.91826351]
[1726419456248,8.35509,2393.8,2393.5,3.16069934]
[1726419456594,4.17763,2393.7,2393.6,1.16731845]
[1726419457187,4.17763,2393.7,2393.5,2.2859]
[1726419457839,4.17763,2393.7,2393.6,1.16741861]
[1726419458888,0.55,2394.0,2393.4,0.87479934]
[1726419459044,4.17798,2393.5,2393.3,0.87479934]
[1726419459243,4.17798,2393.5,2393.4,2.91869596]
[1726419459641,4.17767,2393.7,2393.4,2.91869596]
[1726419459888,4.17767,2393.7,2393.5,1.16747838]
[1726419460049,4.17767,2393.7,2393.3,1.91427433]
[1726419460244,4.17767,2393.7,2393.4,2.91858753]
[1726419460447,4.17767,2393.7,2393.5,2.91860229]
[1726419460676,4.17767,2393.7,2393.4,0.87479934]
[1726419460841,4.17767,2393.7,2393.5,2.91858711]
[1726419461055,4.17767,2393.7,2393.4,0.87479934]
[1726419461259,4.17767,2393.7,2393.5,2.91860823]
[1726419461504,4.17767,2393.7,2393.4,1.42603667]
[1726419461803,4.17767,2393.7,2393.5,2.91863743]
[1726419461973,4.17767,2393.7,2393.4,1.42603667]
[1726419462177,4.17767,2393.7,2393.5,2.91860735]
[1726419462375,8.35542,2393.7,2393.4,1.42603667]
[1726419462581,8.35542,2393.7,2393.5,2.91870127]
[1726419462792,8.35542,2393.7,2393.4,1.42603667]
[1726419462991,8.35542,2393.7,2393.5,2.9187019]
[1726419463301,8.35542,2393.7,2393.4,1.42603667]
[1726419463459,4.17767,2393.7,2393.5,2.9188315]
[1726419463666,4.17767,2393.7,2393.4,1.42603667]
[1726419463861,4.17767,2393.7,2393.5,2.91882857]
[1726419464206,8.35541,2393.7,2393.4,1.42603667]
[1726419464498,8.35541,2393.7,2393.5,2.91895222]
[1726419464862,4.17734,2393.9,2393.6,3.45348079]
[1726419465014,4.17734,2393.9,2393.7,1.16758079]
[1726419465186,10.6573,2394.1,2393.6,2.2859]
[1726419465383,4.17729,2393.9,2393.7,1.16762756]
[1726419465590,8.35466,2393.9,2393.6,2.2859]
[1726419465924,4.17729,2393.9,2393.7,1.16766195]
[1726419466127,4.17729,2393.9,2393.6,3.66595656]
[1726419466301,4.17729,2393.9,2393.7,1.16766712]
[1726419466495,4.17702,2394.1,2393.6,3.66595656]
[1726419466697,4.17702,2394.1,2393.7,2.9192326]
[1726419466931,8.35407,2394.1,2393.6,3.66595656]
[1726419467129,8.35407,2394.1,2393.7,1.167697]
[1726419467290,4.17712,2394.0,2393.6,3.66595656]
[1726419467630,4.17712,2394.0,2393.7,1.16771077]
[1726419467827,4.17712,2394.0,2393.6,3.66595656]
[1726419468008,4.17712,2394.0,2393.7,1.16771072]
[1726419468216,4.17702,2394.1,2393.6,3.66595656]
[1726419468421,4.17672,2394.3,2393.7,4.84963944]
[1726419468726,4.17696,2394.1,2393.8,4.58144177]
[1726419468933,4.17696,2394.1,2393.9,1.16765509]
[1726419469088,4.17696,2394.1,2393.8,1.66220096]
[1726419469292,8.35398,2394.1,2393.8,1.66220096]
[1726419469515,8.35398,2394.1,2393.9,0.35925996]
[1726419469516,4.17696,2394.1,2393.9,0.35925996]
[1726419470798,8.35343,2394.3,2393.9,0.35925996]
[1726419470998,4.1768,2394.2,2393.9,0.35925996]
[1726419471214,4.17669,2394.3,2394.0,2.4049]
[1726419471413,4.17669,2394.3,2394.0,2.93501603]
[1726419471628,4.17676,2394.2,2394.0,2.4049]
[1726419471989,4.17669,2394.3,2394.0,2.4049]
[1726419472188,8.35344,2394.3,2394.0,2.4049]
[1726419472402,4.17677,2394.2,2394.0,2.4049]
[1726419473101,4.17669,2394.3,2394.0,2.4049]
[1726419473329,8.35344,2394.3,2394.0,2.4049]
[1726419473642,4.17669,2394.3,2394.0,2.4049]
[1726419473939,8.35343,2394.3,2394.0,2.4049]
[1726419474095,4.17638,2394.5,2394.1,1.49138145]
[1726419474300,4.17638,2394.5,2394.1,0.24049]
[1726419474495,8.35272,2394.5,2394.1,0.24049]
[1726419474940,4.17634,2394.5,2394.1,0.24049]
[1726419475523,8.35269,2394.5,2394.1,0.24049]
[1726419475725,4.17634,2394.5,2394.1,0.24049]
[1726419476313,4.17642,2394.4,2394.1,0.24049]
[1726419476514,4.17634,2394.5,2394.1,0.24049]
[1726419477135,8.35272,2394.5,2394.1,0.24049]
[1726419477954,4.2069832,2394.7,2394.2,6.9594555]
[1726419478256,4.2069132,2394.7,2394.3,4.21806795]
[1726419478406,4.2069132,2394.7,2394.3,3.03919455]
[1726419478407,4.17608,2394.6,2394.3,3.03919455]
[1726419478807,4.2069032,2394.7,2394.3,3.03919455]
[1726419479011,0.0309332,2394.7,2394.4,0.86779596]
[1726419479213,0.0309332,2394.7,2394.4,4.7965396]
[1726419479823,0.0309332,2394.7,2394.4,4.71301739]
[1726419480031,0.0309332,2394.7,2394.6,6.24794364]
[1726419480249,0.0309332,2394.7,2394.6,7.19355409]
[1726419480411,0.0309332,2394.7,2394.6,7.19375707]
[1726419480617,0.0309332,2394.7,2394.6,7.19387956]
[1726419480841,0.0309332,2394.7,2394.6,5.42638371]
[1726419481118,0.0309332,2394.7,2394.6,7.19388298]
[1726419481455,0.0309332,2394.7,2394.6,19.47474662]
[1726419481616,7.37,2395.1,2394.8,3.92874364]
[1726419482027,7.37,2395.1,2394.9,1.17798335]
[1726419482231,0.0390183,2395.5,2395.0,10.42325364]
[1726419482418,0.0390183,2395.5,2395.4,2.3192]
[1726419486826,0.0390183,2395.5,2395.4,6.24794364]
[1726419487030,0.0390183,2395.5,2395.4,10.42260364]
[1726419487378,0.0390183,2395.5,2395.4,14.59726364]
[1726419487651,0.0390183,2395.5,2395.4,10.42260364]
[1726419487853,0.0390183,2395.5,2395.4,11.464864]
[1726419491039,0.0390183,2395.5,2395.4,3.36146036]
[1726419491274,0.0390183,2395.5,2395.4,7.290204]
[1726419492485,11.5438,2395.9,2395.4,7.290204]
[1726419492631,4.17399,2395.8,2395.4,3.36146036]
[1726419492828,4.17399,2395.8,2395.5,0.75361904]
[1726419493282,4.17415,2395.7,2395.4,1.04226036]
[1726419493567,4.17415,2395.7,2395.2,2.2544]
[1726419494737,2.393,2395.8,2395.2,2.2544]
[1726419494943,4.17461,2395.5,2394.9,2.2544]
[1726419495151,4.17461,2395.5,2395.0,0.417543]
[1726419495152,4.17478,2395.4,2395.0,0.417543]
[1726419497178,4.17485,2395.3,2395.0,0.417543]
[1726419497681,8.34925,2395.5,2395.0,0.417543]
[1726419497842,4.17461,2395.5,2395.0,0.417543]
[1726419498039,4.17477,2395.4,2395.0,0.417543]
[1726419498787,4.17459,2395.5,2395.0,4.34628664]
[1726419498969,4.17459,2395.5,2395.1,0.66006866]
[1726419499149,7.17443,2395.6,2395.1,0.66006866]
[1726419499349,7.17443,2395.6,2395.2,2.2544]
[1726419499592,7.37,2395.8,2395.4,3.92874364]
[1726419499779,4.17387,2395.9,2395.5,2.2544]
[1726419499979,4.17387,2395.9,2395.5,3.09389905]
[1726419500357,4.17352,2396.1,2395.6,3.92874364]
[1726419500559,4.17374,2396.0,2395.6,3.92874364]
[1726419500759,4.17374,2396.0,2395.6,5.04846191]
[1726419501395,4.17352,2396.1,2395.6,5.04846191]
[1726419502690,8.34712,2396.1,2395.6,5.04846191]
[1726419503575,4.17352,2396.1,2395.6,5.04846191]
[1726419504190,4.17352,2396.1,2395.7,2.2544]
[1726419504399,4.17352,2396.1,2395.8,0.73028619]
[1726419505962,4.17391,2395.9,2395.6,1.11971827]
[1726419506165,4.17399,2395.8,2395.5,2.2544]
[1726419506604,4.17415,2395.7,2395.3,2.2544]
[1726419506901,4.17415,2395.7,2395.3,4.22129236]
[1726419508113,2.393,2395.9,2395.3,1.96689236]
[1726419508263,4.17459,2395.5,2395.1,9.8875]
[1726419508468,8.34924,2395.5,2395.1,11.68666936]
[1726419508691,5.4652,2395.7,2395.1,9.18916936]
[1726419508899,4.17497,2395.3,2395.1,7.39]
[1726419509213,4.17476,2395.4,2394.9,6.42624364]
[1726419511654,4.17484,2395.3,2394.9,6.42624364]
[1726419511962,4.17514,2395.2,2394.7,8.18308663]
[1726419512251,4.17514,2395.2,2394.7,6.42624364]
[1726419512610,4.17514,2395.2,2394.8,0.73015711]
[1726419514921,4.17466,2395.4,2394.9,3.92874364]
[1726419515525,4.17466,2395.4,2394.9,8.10425364]
[1726419515917,4.17466,2395.4,2394.9,3.92874364]
[1726419516261,4.17466,2395.4,2395.0,0.88344607]
[1726419518135,4.17466,2395.4,2395.1,2.2689]
[1726419518866,8.3491,2395.5,2395.1,2.2689]
[1726419519163,4.17451,2395.5,2395.1,2.2689]
[1726419519346,4.17451,2395.5,2395.2,0.31523461]
[1726419519717,8.34912,2395.5,2395.2,0.31523461]
[1726419520266,0.43628834,2395.4,2395.2,0.31523461]
[1726419524621,0.43628834,2395.4,2395.3,1.17615304]
[1726419524826,0.43628834,2395.4,2395.2,0.31523461]
[1726419525066,0.43628834,2395.4,2395.3,1.17615188]
[1726419525236,0.43628834,2395.4,2395.3,3.40391437]